{"text_format":"3","workbook":"xlsx","n_sheets":1,"sheets":["Sąskaita faktūra"],"not_rendered":{"images":1,"defined_names":14},"read":"whole","date_system":"1900"}

{"sheet":"Sąskaita faktūra","index":0,"n_rows":33,"n_cols":6,"rows_kept":33,"merged":[[0,1,0,5],[1,1,1,5],[9,1,9,5],[10,1,10,2],[10,3,11,4],[10,5,11,5],[11,1,11,2],[12,1,12,2],[12,3,13,4],[12,5,13,5],[13,1,13,2],[14,1,14,2],[29,1,29,2],[30,1,31,2],[32,1,32,2]]}
[null,"SĄSKAITA FAKTŪRA"]
[null,"Įmonės pavadinimas"]
[]
[null,"321 Avenue A",null,null,"Data:",{"$f":"TODAY()","v":"2022-12-20"}]
[null,"Portland, OR 12345",null,null,"Sąskaitos faktūros nr.",1111]
[null,"Telefonas: (206) 555-1163",null,null,"Už","PO # 123456"]
[null,"Faksas: (206) 555-1164"]
[null,"someone@websitegoeshere.com"]
[]
[null,"Sąskaitos gavėjas:"]
[null,"Natasha Jones",null,"Elementams, viršijantiems šią sumą, taikoma papildoma nuolaida",null,{"v":100,"d":"100 EUR"}]
[null,"Central Beauty"]
[null,"123 Main St.",null,"% nuolaida",null,{"v":0.1,"d":"10%"}]
[null,"Manhattan, NY 98765"]
[null,"(321) 555-1234"]
[]
[null,"Kiekis","Aprašas","Vieneto kaina","Suma","Pritaikyta nuolaida"]
[null,1,"1 elemento numeris",{"v":2,"d":"2.00 EUR"},{"$f":"Suma","v":{"v":2,"d":"2.00 EUR"}},{"$f":"Pritaikyta_nuolaida","v":0}]
[null,1,"2 elemento numeris",{"v":2,"d":"2.00 EUR"},{"$f":"Suma","v":{"v":2,"d":"2.00 EUR"}},{"$f":"Pritaikyta_nuolaida","v":0}]
[null,1,"3 elemento numeris",{"v":2,"d":"2.00 EUR"},{"$f":"Suma","v":{"v":2,"d":"2.00 EUR"}},{"$f":"Pritaikyta_nuolaida","v":0}]
[{"$nulls":4},{"$f":"Suma","v":0},{"$f":"Pritaikyta_nuolaida","v":0}]
[{"$nulls":4},{"$f":"Suma","v":0},{"$f":"Pritaikyta_nuolaida","v":0}]
[{"$nulls":4},{"$f":"Suma","v":0},{"$f":"Pritaikyta_nuolaida","v":0}]
[{"$nulls":4},{"$f":"Suma","v":0},{"$f":"Pritaikyta_nuolaida","v":0}]
[{"$nulls":4},{"$f":"Suma","v":0},{"$f":"Pritaikyta_nuolaida","v":0}]
[{"$nulls":4},{"$f":"Suma","v":0},{"$f":"Pritaikyta_nuolaida","v":0}]
[{"$nulls":4},{"$f":"Suma","v":0},{"$f":"Pritaikyta_nuolaida","v":0}]
[{"$nulls":4},{"$f":"Suma","v":0},{"$f":"Pritaikyta_nuolaida","v":0}]
[null,"Tarpinė suma",null,null,{"$f":"SUBTOTAL(109,SąskaitosInformacija[Suma])","v":{"v":6,"d":"6.00 EUR"}}]
[null,"Visų mokėjimų gavėjas yra <Įmonės pavadinimas>.",null,"Kreditas ",{"v":1000,"d":"1,000.00 EUR"}]
[null,"Jei turite klausimų dėl šios sąskaitos faktūros, kreipkitės <Vardas>, <telefonas ar el. pašto adresas>\n",null,"Mokestis ",{"v":0.098,"d":"9.80%"}]
[{"$nulls":3},"Papildoma nuolaida ",{"v":0.12,"d":"12%"}]
[null,"Dėkojame jums!",null,"Mokėtinas likutis ",{"$f":"Balansas_apmokėtinas","v":{"v":-994.20256,"d":"-994.20 EUR"}}]